bitfinex/quotes_ETHUSD_20260308
["timestamp","ask_amount","ask_price","bid_price","bid_amount"]
[1772982099059,1.516,1946.4,1946.1,0.46082608]
[1772982099259,1.517,1946.6,1946.1,0.46082608]
[1772982099778,0.002,1946.6,1946.1,0.46082608]
[1772982100562,0.002,1946.6,1946.3,0.46082608]
[1772982101280,0.002,1946.6,1946.1,0.46082608]
[1772982101281,0.42927317,1946.6,1946.1,0.46082608]
[1772982102891,1.93927317,1946.6,1946.2,1.74538059]
[1772982103969,1.513,1946.6,1946.3,0.46082608]
[1772982105185,1.513,1946.6,1946.3,1.74530752]
[1772982105497,1.513,1946.6,1946.4,0.46082608]
[1772982106293,0.002,1946.6,1946.4,0.46082608]
[1772982106599,1.514,1946.6,1946.4,0.46082608]
[1772982107398,0.002,1946.5,1946.4,0.46082608]
[1772982107768,1.28415783,1946.9,1946.4,0.46082608]
[1772982108072,1.94202124,1946.8,1946.4,0.46082608]
[1772982108890,0.42698689,1946.7,1946.4,0.46082608]
[1772982109267,3.22523363,1946.7,1946.4,0.46082608]
[1772982109469,3.22523363,1946.7,1946.3,1.74531354]
[1772982109792,1.94098689,1946.7,1946.3,1.28448746]
[1772982109998,1.94098689,1946.7,1946.4,0.46082608]
[1772982111102,0.42691936,1946.6,1946.2,0.46082608]
[1772982111271,0.42691936,1946.5,1946.2,0.46082608]
[1772982111596,0.42691936,1946.5,1946.1,0.46082608]
[1772982111993,1.71118097,1946.6,1946.1,0.46082608]
[1772982112200,1.515,1946.5,1946.1,0.46082608]
[1772982112879,1.515,1946.6,1946.1,0.46082608]
[1772982113902,2.79929286,1946.6,1946.2,1.28455451]
[1772982114088,1.516,1946.6,1946.3,0.46082608]
[1772982114682,1.28427576,1946.7,1946.3,0.46082608]
[1772982114997,2.80027576,1946.7,1946.3,0.46082608]
[1772982116423,2.80027576,1946.7,1946.4,0.46082608]
[1772982116717,1.28427576,1946.7,1946.4,0.46082608]
[1772982116921,3.22994487,1946.8,1946.4,0.46082608]
[1772982117075,1.519,1946.8,1946.4,0.46082608]
[1772982118014,1.519,1946.8,1946.6,0.46082608]
[1772982118500,0.4266643,1946.7,1946.3,0.46082608]
[1772982118683,1.517,1946.7,1946.3,0.46082608]
[1772982119690,0.002,1946.8,1946.3,0.46082608]
[1772982119890,0.002,1946.8,1946.5,0.46082608]
[1772982120100,0.002,1946.6,1946.5,0.46082608]
[1772982120307,0.00153886,1947.0,1946.4,1.28539974]
[1772982120506,0.00153886,1947.0,1946.5,0.46082608]
[1772982120718,0.002,1946.7,1946.5,0.46082608]
[1772982121300,1.71217293,1947.0,1946.5,0.46082608]
[1772982121301,0.00153886,1947.0,1946.5,0.46082608]
[1772982122404,0.00153886,1947.0,1946.7,0.46082608]
[1772982122602,0.42808421,1947.0,1946.7,0.46082608]
[1772982124104,0.00153886,1947.0,1946.7,0.46082608]
[1772982124496,0.00153886,1947.0,1946.8,1.28415861]
[1772982125213,0.42797063,1947.0,1946.7,1.74500307]
[1772982125530,0.00153886,1947.0,1946.7,1.74500307]
[1772982125819,0.00153886,1947.0,1946.8,0.4888827]
[1772982127220,0.00153886,1947.0,1946.4,5.13868751]
[1772982127221,0.48568081,1947.0,1946.4,0.001]
[1772982127421,0.48414195,1946.9,1946.4,0.001]
[1772982127591,0.48414195,1946.9,1946.3,0.001]
[1772982128000,0.48414195,1946.9,1946.3,0.4898827]
[1772982128203,0.48414195,1946.7,1946.3,0.4898827]
[1772982128893,0.48414195,1946.5,1946.3,0.001]
[1772982131321,1.76856447,1946.4,1946.3,0.001]
[1772982133594,3.27656447,1946.4,1946.3,0.001]
[1772982133800,0.48414195,1946.3,1946.0,0.001]
[1772982135098,0.48414195,1946.3,1946.1,0.001]
[1772982136021,1.76869646,1946.2,1946.1,0.001]
[1772982136906,0.48414195,1946.1,1945.9,0.001]
[1772982137112,1.99614195,1946.0,1945.9,0.001]
[1772982138116,3.28082848,1946.0,1945.9,0.001]
[1772982140002,0.48414195,1945.9,1945.4,0.4898827]
[1772982140334,0.48414195,1945.8,1945.4,1.77496063]
[1772982142122,0.48414195,1945.8,1945.5,0.4888827]
[1772982142327,1.76900853,1945.8,1945.5,0.4888827]
[1772982142640,0.48414195,1945.7,1945.4,0.001]
[1772982142809,2.00214195,1945.6,1945.4,0.001]
[1772982144231,0.48414195,1945.5,1945.4,0.001]
[1772982144432,1.76915865,1945.5,1945.4,0.001]
[1772982145407,0.48414195,1945.5,1945.4,0.001]
[1772982145608,2.00414195,1945.5,1945.4,0.001]
[1772982145836,3.28915865,1945.5,1945.4,0.001]
[1772982146543,0.48414195,1945.4,1944.6,1.28557483]
[1772982146757,0.48414195,1945.4,1944.7,0.4888827]
[1772982146935,0.48414195,1945.4,1944.3,5.14432568]
[1772982146936,0.48414195,1944.8,1944.4,0.4888827]
[1772982147246,0.48414195,1944.6,1944.1,0.4888827]
[1772982147407,0.48414195,1944.6,1944.0,1.28863136]
[1772982147606,0.48414195,1944.6,1944.2,0.4899827]
[1772982147806,1.509,1944.5,1944.2,0.4899827]
[1772982148007,1.99314195,1944.5,1944.2,0.0011]
[1772982148509,3.27882636,1944.5,1944.2,0.0011]
[1772982148711,1.99314195,1944.5,1944.2,0.0011]
[1772982149136,3.27882551,1944.5,1944.2,0.0011]
[1772982149472,0.48414195,1944.4,1944.0,0.00263886]
[1772982149752,0.48414195,1944.2,1943.7,1.28729672]
[1772982149921,0.48414195,1944.2,1943.7,0.0011]
[1772982150623,0.48414195,1944.0,1943.7,0.0011]
[1772982150808,1.97114195,1944.0,1943.7,0.0011]
[1772982152851,0.47213834,1944.4,1943.7,0.46807179]
[1772982153053,1.496,1944.3,1943.7,0.46807179]
[1772982155426,0.47213834,1944.4,1943.9,0.46697179]
[1772982155818,1.75788744,1944.4,1943.9,0.46697179]
[1772982157346,0.47213834,1944.3,1943.8,1.28614054]
[1772982157546,0.47213834,1944.2,1943.7,0.0011]
[1772982158050,0.47213834,1944.2,1943.7,0.46807179]
[1772982159947,0.47213834,1944.3,1943.9,0.46697179]
[1772982160155,0.47213834,1944.3,1943.7,1.75422812]
[1772982160571,0.47213834,1944.3,1943.8,0.46697179]
[1772982160740,0.47213834,1944.2,1943.8,0.46807179]
[1772982162068,1.75801805,1944.2,1943.8,1.75419046]
[1772982162369,0.47213834,1944.1,1943.8,0.0011]
[1772982165374,0.47213834,1943.9,1943.8,0.0011]
[1772982168276,1.475,1944.1,1943.8,0.46807179]
[1772982168846,1.94713834,1944.1,1943.8,0.46807179]
[1772982170194,3.23312418,1944.1,1943.8,0.46807179]
[1772982171644,0.47213834,1944.1,1943.8,0.46807179]
[1772982171950,1.96313834,1944.2,1943.8,1.75421018]
[1772982172378,0.47213834,1944.1,1943.8,0.46807179]
[1772982172542,0.47213834,1944.1,1943.9,0.0011]
[1772982172946,0.001,1944.0,1943.9,0.0011]
[1772982174577,0.001,1944.3,1944.0,0.46697179]
[1772982174751,1.97313834,1944.3,1943.9,1.75414617]
[1772982174953,0.47213834,1944.2,1943.9,0.46807179]
[1772982176465,0.001,1944.3,1943.9,0.46807179]
[1772982176649,0.47213834,1944.7,1944.1,0.46697179]
[1772982176849,5.14180243,1944.9,1944.1,0.46697179]
[1772982176850,1.491,1944.8,1944.1,0.46697179]
[1772982177451,0.47213834,1944.9,1944.1,0.46697179]
[1772982177762,0.47213834,1944.8,1944.1,0.46697179]
[1772982178282,1.75902746,1945.0,1944.2,0.46697179]
[1772982178458,0.47213834,1944.9,1944.2,0.46697179]
[1772982178929,0.47213834,1944.8,1943.9,0.0011]
[1772982179059,0.47213834,1944.8,1944.1,0.46697179]
[1772982179456,1.483,1944.7,1944.1,0.46697179]
[1772982179682,1.95613834,1944.7,1944.1,0.46697179]
[1772982180053,0.47213834,1944.6,1944.1,0.46697179]
[1772982181549,1.491,1944.7,1944.3,0.46697179]
[1772982181748,1.96413834,1944.8,1944.3,0.46697179]
[1772982181977,0.47213834,1944.7,1944.2,1.28587593]
[1772982182685,0.47213834,1944.7,1944.2,1.75284772]
[1772982184787,0.001,1944.6,1944.2,1.75284772]
[1772982186188,0.001,1944.6,1944.3,0.45157622]
[1772982186353,0.49487998,1944.9,1944.3,0.45157622]
[1772982188167,0.49487998,1944.9,1944.4,1.28574367]
[1772982188369,0.49487998,1944.9,1944.5,0.45157622]
[1772982188773,0.8582332,1945.4,1944.6,0.45157622]
[1772982189084,0.36335322,1945.4,1944.6,0.45157622]
[1772982189258,0.49487998,1945.8,1944.9,0.45157622]
[1772982190088,0.002,1945.9,1944.9,0.45157622]
[1772982190291,0.49687998,1945.9,1945.1,0.45157622]
[1772982190692,0.49687998,1945.9,1945.0,1.28534704]
[1772982190859,0.49487998,1945.8,1945.0,1.28534704]
[1772982191062,0.49487998,1945.8,1945.0,1.73692326]
[1772982191259,0.49487998,1945.8,1944.4,5.14272872]
[1772982191497,0.49487998,1945.8,1944.6,0.45157622]
[1772982192595,0.49487998,1945.6,1944.7,1.73712154]
[1772982192997,0.49487998,1945.6,1944.8,0.45157622]
[1772982193993,0.49487998,1945.8,1944.8,0.45157622]
[1772982194172,0.49487998,1945.8,1944.9,0.14948499]
[1772982194377,0.49487998,1945.8,1945.0,0.45157622]
[1772982194994,0.49487998,1945.7,1945.1,1.28528096]
[1772982195192,0.49687998,1945.9,1945.2,0.45157622]
[1772982195576,1.78163988,1945.9,1945.2,0.45157622]
[1772982196903,0.49487998,1945.8,1945.3,1.28514882]
[1772982197578,0.001,1945.5,1945.3,1.28514882]
[1772982198878,0.49487998,1945.8,1945.3,1.28514882]
[1772982199080,0.49487998,1945.8,1945.3,1.73672504]
[1772982202101,1.77973428,1945.8,1945.3,1.73672504]
[1772982202408,0.49487998,1945.7,1945.3,0.45157622]
[1772982202710,0.49487998,1945.7,1945.2,1.28518038]
[1772982204301,0.49487998,1945.7,1945.2,0.45157622]
[1772982205439,0.49487998,1945.6,1945.0,1.28534704]
[1772982205716,0.49487998,1945.6,1945.0,1.73692326]
[1772982206025,0.49487998,1945.6,1944.9,1.36449543]
[1772982206598,0.49487998,1945.4,1944.9,1.36449543]
[1772982209317,0.49487998,1945.4,1945.3,0.001]
[1772982216026,2.00587998,1945.4,1945.3,0.001]
[1772982220927,2.00587998,1945.4,1945.0,0.001]
[1772982220928,0.49375352,1945.3,1945.0,0.001]
[1772982221121,0.49375352,1945.3,1944.7,1.73794341]
[1772982221322,0.49375352,1945.3,1944.7,0.45240212]
[1772982221517,0.49375352,1945.3,1944.8,0.45240212]
[1772982221829,2.00975352,1945.2,1944.8,0.45240212]
[1772982222531,0.49375352,1945.1,1944.8,0.45240212]
[1772982225306,0.49375352,1945.1,1944.8,1.737876]
[1772982225506,0.49375352,1945.1,1944.8,0.45240212]
[1772982225806,0.49375352,1945.1,1944.8,1.73786353]
[1772982226004,0.49375352,1945.1,1944.7,1.73789636]
[1772982227332,0.49375352,1945.1,1944.8,0.45240212]
[1772982227535,0.49375352,1945.2,1944.8,1.73784561]
[1772982227741,2.01275352,1945.2,1944.9,0.45240212]
[1772982229016,0.49375352,1945.1,1944.7,0.45240212]
[1772982230311,0.49375352,1945.1,1944.7,1.73790262]
[1772982230646,0.49375352,1945.1,1944.8,0.45240212]
[1772982233433,0.49375352,1945.1,1944.7,1.73790262]
[1772982233631,0.49375352,1945.0,1944.7,1.2855005]
[1772982233947,0.49375352,1945.0,1944.6,1.2855604]
[1772982234440,0.49375352,1945.0,1944.6,1.73796252]
[1772982235142,0.49375352,1945.0,1944.9,0.0011]
[1772982236049,0.001,1945.1,1944.9,0.45350212]
[1772982237640,0.49475352,1945.1,1944.9,0.0011]
[1772982239267,0.49375352,1944.9,1944.6,0.0011]
[1772982240661,0.49375352,1944.9,1944.3,0.0011]
[1772982240662,0.49375352,1944.6,1944.3,0.0011]
[1772982240860,0.49375352,1944.4,1944.1,0.02570639]
[1772982241559,0.49375352,1944.2,1944.1,0.02570639]
[1772982241730,0.49375352,1944.2,1943.9,0.0011]
[1772982242860,0.4802132,1943.8,1943.5,0.0011]
[1772982243060,0.4802132,1943.6,1943.0,1.74563782]
[1772982243254,0.4802132,1943.6,1943.1,0.0011]
[1772982243770,0.27353708,1943.4,1943.1,0.0011]
[1772982245653,0.47794319,1943.2,1943.1,0.0011]
[1772982245860,0.47794319,1943.1,1942.6,1.28688547]
[1772982246256,0.47794319,1943.1,1942.4,5.14824703]
[1772982246838,0.47794319,1943.1,1942.4,5.62921281]
[1772982247777,0.47794319,1942.9,1942.1,1.76823214]
[1772982247947,0.47101726,1942.9,1942.1,1.76823214]
[1772982248873,0.47101726,1942.9,1942.1,1.28726636]
[1772982249443,0.47794319,1942.8,1942.0,0.00153886]
[1772982249851,0.47794319,1942.6,1942.0,0.00153886]
[1772982250052,0.47794319,1942.4,1942.0,0.00153886]
[1772982250566,1.516,1942.3,1942.0,0.48250464]
[1772982250863,0.47794319,1942.6,1942.0,0.48250464]
[1772982251062,0.47794319,1942.4,1942.0,0.00153886]
[1772982254584,0.47794319,1942.3,1941.7,1.28746813]
[1772982255078,1.28707011,1942.4,1941.8,0.48096578]
[1772982255079,1.52,1942.4,1941.8,0.48096578]
[1772982255979,1.99794319,1942.4,1941.8,0.48096578]
[1772982256155,1.52,1942.4,1941.8,0.48096578]
[1772982256363,0.47794319,1942.3,1941.8,0.48096578]
[1772982256563,0.47794319,1942.2,1941.6,1.76851347]
[1772982256747,0.47794319,1942.2,1941.7,0.48096578]
[1772982258176,0.47794319,1942.2,1941.6,1.28754769]
[1772982258562,0.47794319,1942.0,1941.5,5.15057302]
[1772982260073,0.47794319,1942.0,1941.8,0.0011]
[1772982263158,0.47794319,1941.9,1941.5,0.0011]
[1772982263507,0.47794319,1941.9,1941.5,1.28875465]
[1772982263788,1.481,1941.9,1941.5,1.76972043]
[1772982264278,1.481,1941.9,1941.5,0.48206578]
[1772982264586,0.47794319,1941.8,1941.5,0.0011]
[1772982264780,0.47794319,1941.7,1941.5,0.0011]
[1772982266005,0.47794319,1941.7,1941.0,0.00153886]
[1772982266287,0.47794319,1941.7,1941.1,0.0011]
[1772982266660,0.47794319,1941.5,1941.1,0.0011]
[1772982267472,0.47794319,1941.5,1940.5,1.28832775]
[1772982267673,0.47794319,1941.5,1940.5,1.28942775]
[1772982268105,0.47794319,1941.1,1940.1,0.48096578]
[1772982268458,1.96594319,1941.0,1940.1,0.48096578]
[1772982268759,0.47794319,1940.9,1940.2,1.28852695]
[1772982269373,1.467,1940.8,1940.2,1.28852695]
[1772982269574,0.47794319,1940.7,1940.2,1.28852695]
[1772982269894,0.47794319,1940.7,1940.1,1.76951856]
[1772982270195,0.47794319,1940.7,1940.0,0.00153886]
[1772982270490,0.47794319,1940.7,1940.0,1.29019807]
[1772982270868,1.28826136,1940.6,1940.0,0.00153886]
[1772982271064,0.47794319,1940.5,1940.0,0.00153886]
[1772982272586,0.47794319,1940.5,1940.2,0.0011]
[1772982273287,1.485,1940.6,1940.2,0.47531955]
[1772982273894,1.485,1940.6,1940.2,0.0011]
[1772982274392,1.95290011,1940.6,1940.2,0.0011]
[1772982274798,1.491,1941.1,1940.2,0.47531955]
[1772982275005,1.492,1941.0,1940.2,0.47531955]
[1772982275411,1.492,1941.0,1940.3,1.28846054]
[1772982275608,0.46790011,1941.5,1940.4,0.47421955]
[1772982275766,0.46790011,1941.7,1940.6,0.47421955]
[1772982276767,1.75680793,1942.0,1940.8,0.47421955]
[1772982277078,1.427,1941.9,1940.8,0.47421955]
[1772982277895,1.433,1941.9,1941.0,0.47421955]
[1772982278396,1.42553886,1942.0,1941.0,0.47421955]
[1772982279169,0.00153886,1942.0,1941.0,0.47421955]
[1772982279996,0.00153886,1942.0,1941.2,0.47421955]
[1772982280179,0.46943897,1942.0,1941.2,0.47421955]
[1772982280875,0.45397784,1942.0,1941.2,0.47421955]
[1772982282502,0.45397784,1942.0,1941.3,1.28779683]
[1772982282677,0.45397784,1942.0,1941.4,0.47421955]
[1772982284487,0.45397784,1942.0,1941.3,1.28779683]
[1772982284488,0.46790011,1941.9,1941.3,1.28779683]
[1772982284702,1.75536534,1941.8,1941.3,1.28779683]
[1772982285196,0.46790011,1941.8,1941.3,1.28779683]
[1772982285579,0.001,1941.9,1941.3,1.76201638]
[1772982285776,1.439,1941.9,1941.4,0.47421955]
[1772982286303,0.001,1941.9,1941.4,0.47421955]
[1772982286806,0.001,1941.9,1941.5,1.76188372]
[1772982287008,0.001,1941.9,1941.6,0.47421955]
[1772982288076,0.001,1942.1,1941.6,0.47421955]
[1772982288890,0.001,1942.1,1941.8,0.47421955]
[1772982290208,0.46790011,1942.8,1941.8,0.47421955]
[1772982290396,1.75471172,1942.8,1941.8,0.47421955]
[1772982290705,0.46790011,1942.8,1941.8,0.47421955]
[1772982290904,0.514,1942.7,1941.9,1.28739893]
[1772982291102,0.46790011,1942.8,1942.0,0.47421955]
[1772982293280,0.46790011,1942.8,1942.1,1.76148591]
[1772982293483,0.00153886,1943.0,1942.2,0.47421955]
[1772982294711,0.46790011,1943.6,1942.6,0.47421955]
[1772982295207,3.98695429,1943.9,1942.8,0.47421955]
[1772982295411,1.86190011,1943.8,1942.8,0.47421955]
[1772982295583,1.394,1943.8,1942.8,0.47421955]
[1772982295779,0.00153886,1944.0,1942.7,1.28686879]
[1772982295780,0.00153886,1944.0,1943.2,0.47421955]
[1772982296687,0.002,1945.7,1943.5,0.14948499]
[1772982297026,1.75480406,1945.0,1944.0,0.47421955]
[1772982297192,0.00153886,1945.0,1944.4,0.47421955]
[1772982299185,0.00153886,1945.0,1944.6,0.47421955]
[1772982299787,0.00153886,1945.0,1944.5,1.28567755]
[1772982300213,0.00153886,1945.0,1944.5,1.7598971]
[1772982300621,0.00153886,1945.0,1944.6,0.47421955]
[1772982301837,0.46943897,1945.0,1944.2,1.28587593]
[1772982301992,0.46943897,1945.0,1943.7,0.47421955]
[1772982302321,0.46943897,1945.0,1943.5,1.28633907]
[1772982302521,0.46790011,1944.7,1943.4,0.10561235]
[1772982302689,0.45968894,1944.4,1943.4,0.10561235]
[1772982302889,0.45968894,1944.4,1943.4,1.39201754]
[1772982303089,1.25,1944.3,1943.4,1.39201754]
[1772982303296,1.70568894,1944.4,1943.4,1.84292089]
[1772982303517,0.45968894,1944.4,1943.4,1.84292089]
[1772982303932,1.2858098,1944.3,1943.4,1.84292089]
[1772982304123,0.45968894,1944.2,1943.4,1.39201754]
[1772982305836,0.45968894,1944.2,1943.4,0.10561235]
[1772982305996,1.73849702,1944.1,1943.4,1.39200181]
[1772982306490,0.45255494,1944.0,1943.4,0.10561235]
[1772982306691,0.45255494,1944.0,1943.0,0.00153886]
[1772982306893,0.45255494,1943.8,1943.0,0.00153886]
[1772982307124,0.45255494,1943.6,1943.0,0.00153886]
[1772982307940,1.28633907,1943.5,1943.0,0.00153886]
[1772982308295,0.45255494,1943.4,1943.0,0.00153886]
[1772982308496,0.45255494,1943.4,1942.5,1.28694528]
[1772982309894,0.45255494,1943.4,1943.2,0.0011]
[1772982310095,1.7390264,1943.3,1942.5,1.28694528]
[1772982310397,1.7390264,1943.3,1942.5,1.74991436]
[1772982313808,1.7390264,1943.3,1942.6,0.46296908]
[1772982316026,0.45255494,1943.7,1942.8,0.46296908]
[1772982316336,0.45255494,1943.7,1942.2,6.31600514]
[1772982316337,0.45255494,1943.6,1942.3,1.75010289]
[1772982316500,1.28614054,1943.8,1942.2,1.28714937]
[1772982316501,0.45255494,1943.3,1942.2,1.28714937]
[1772982316701,0.45255494,1943.3,1942.3,0.46296908]
[1772982316702,0.45255494,1943.1,1942.3,0.46296908]
[1772982317027,3.84,1943.3,1942.3,0.46296908]
[1772982317431,3.84,1943.3,1942.5,0.46296908]
[1772982318326,3.84,1943.3,1942.7,0.46296908]
[1772982318520,1.286344,1943.5,1942.7,0.46296908]
[1772982321030,0.45255494,1943.5,1942.8,1.28680255]
[1772982322132,0.45255494,1943.5,1942.7,1.28682979]
[1772982322332,0.001,1943.2,1942.7,1.28682979]
[1772982324130,0.001,1943.2,1942.6,5.14880352]
[1772982324340,0.001,1943.2,1942.6,5.6117726]
[1772982325129,0.001,1943.2,1942.6,5.14880352]
[1772982325309,0.001,1943.2,1942.7,0.46296908]
[1772982326136,0.001,1943.2,1942.8,1.28680255]
[1772982328141,0.45355494,1943.2,1942.6,1.75100163]
[1772982328346,0.45255494,1943.1,1942.6,1.75100163]
[1772982332238,0.001,1943.2,1942.7,0.46296908]
[1772982332739,0.001,1943.2,1942.8,1.28680255]
[1772982332944,0.001,1943.2,1942.9,0.48952872]
[1772982334930,0.001,1943.2,1942.9,1.77620313]
[1772982336052,0.46492835,1943.2,1942.7,1.28682158]
[1772982336215,0.46492835,1943.2,1942.7,1.7763503]
[1772982337550,0.46392835,1943.1,1942.6,1.28802152]
[1772982338051,0.46392835,1943.1,1942.6,1.77755024]
[1772982341148,0.001,1943.2,1942.7,0.48952872]
[1772982342761,0.001,1943.2,1942.6,1.28802152]
[1772982342762,3.84,1943.5,1942.6,1.28802152]
[1772982343058,0.46392835,1943.9,1943.2,0.48952872]
[1772982343262,0.00153886,1944.0,1943.2,0.48952872]
[1772982343263,1.28758545,1944.0,1943.2,0.48952872]
[1772982345570,1.28758545,1944.0,1943.4,0.48952872]
[1772982345856,0.001,1943.9,1943.4,0.48952872]
[1772982348082,0.001,1943.9,1943.4,1.77590976]
[1772982351181,0.001,1943.9,1943.5,0.48952872]
[1772982351384,0.46492835,1943.9,1943.4,1.28638104]
[1772982351684,0.46492835,1943.9,1943.4,1.77590976]
[1772982352180,0.46492835,1943.9,1943.5,0.48952872]
[1772982352386,1.75105166,1943.9,1943.5,0.48952872]
[1772982354484,0.46492835,1943.9,1943.5,1.77585481]
[1772982354655,0.001,1943.9,1943.6,0.48952872]
[1772982354855,1.2870847,1943.9,1943.6,0.48952872]
[1772982356284,0.46392835,1943.8,1943.3,0.48952872]
[1772982356480,0.46392835,1943.6,1943.0,1.77619267]
[1772982357572,0.46392835,1943.6,1943.0,0.48952872]
[1772982357778,0.46392835,1943.6,1942.9,0.0011]
[1772982357956,0.46392835,1943.6,1942.9,1.28783586]
[1772982358160,0.46392835,1943.4,1943.3,0.0011]
[1772982358356,0.46392835,1943.4,1942.9,1.28783586]
[1772982358582,1.75039981,1943.3,1943.2,0.0011]
[1772982361103,1.75039981,1943.3,1943.0,0.0011]
[1772982361104,0.46392835,1943.2,1943.0,0.0011]
[1772982363061,1.28660388,1943.1,1943.0,0.0011]
[1772982364386,0.49580815,1943.1,1943.0,0.0011]
[1772982366292,0.49580815,1943.1,1942.6,0.0011]
[1772982366491,2.78267009,1943.0,1942.6,0.0011]
[1772982366789,1.28665572,1943.1,1942.6,0.474795]
[1772982366994,1.497,1943.0,1942.6,0.474795]
[1772982368958,2.78370206,1943.0,1942.6,0.474795]
[1772982369594,0.49580815,1942.9,1942.6,0.0011]
[1772982370295,1.497,1943.0,1942.6,1.28802777]
[1772982370462,3.27948016,1943.0,1942.6,0.0011]
[1772982370662,3.28048016,1943.0,1942.6,0.474795]
[1772982370862,1.28667201,1943.0,1942.6,0.474795]
[1772982371061,6.6444292,1943.1,1942.7,0.0011]
[1772982371585,6.6454292,1943.1,1942.7,0.0011]
[1772982372495,2.78560388,1943.1,1942.7,0.0011]
[1772982372709,0.001,1943.1,1942.7,0.474795]
[1772982373772,0.001,1943.1,1942.8,1.76049755]
[1772982374182,0.49680815,1943.1,1942.7,0.0011]
[1772982374396,0.49680815,1943.1,1942.7,1.28795896]
[1772982374600,0.49680815,1943.1,1942.7,0.0011]
[1772982375000,0.49680815,1943.1,1942.7,1.28796788]
[1772982375296,0.001,1943.1,1942.8,0.473695]
[1772982376084,0.49680815,1943.1,1942.7,0.0011]
[1772982378181,1.78346576,1943.1,1942.7,0.0011]
[1772982383015,1.78346576,1943.1,1942.8,0.0011]
[1772982384889,0.49580815,1943.0,1942.8,0.0011]
[1772982388596,1.78254447,1942.9,1942.8,0.0011]
[1772982390510,5.14669795,1943.0,1942.8,0.0011]
[1772982390511,1.78252758,1943.0,1942.8,0.0011]
[1772982391019,0.49580815,1943.0,1942.8,0.0011]
[1772982391316,1.503,1943.0,1942.8,0.474795]
[1772982393010,1.78341442,1943.1,1942.8,0.474795]
[1772982393214,1.503,1943.0,1942.8,0.474795]
[1772982393516,1.503,1943.0,1942.8,0.0011]
[1772982393728,1.99313352,1943.0,1942.8,0.0011]
[1772982394708,1.99413352,1943.0,1942.8,0.0011]
[1772982396244,3.2808644,1943.0,1942.8,0.0011]
[1772982400930,3.27336705,1943.3,1943.0,0.4951785]
[1772982405937,1.98683963,1943.3,1943.0,0.4951785]
[1772982406121,0.49013352,1943.4,1943.1,0.4951785]
[1772982406329,1.508,1943.6,1943.1,0.4951785]
[1772982407136,0.001,1943.2,1943.1,0.4951785]
[1772982407338,1.508,1943.6,1943.1,0.4951785]
[1772982407540,0.001,1943.8,1943.1,0.4951785]
[1772982407747,0.49013352,1943.7,1943.3,0.4951785]
[1772982407952,0.49013352,1943.7,1943.1,0.4951785]
[1772982411117,1.28627289,1943.6,1943.1,0.4951785]
[1772982411444,1.77640641,1943.6,1943.1,0.4951785]
[1772982412244,1.509,1943.5,1943.1,0.4951785]
[1772982412545,0.49013352,1943.1,1942.8,0.0011]
[1772982412713,0.49013352,1942.9,1942.5,0.0011]
[1772982413116,0.49013352,1942.7,1942.1,1.88797852]
[1772982413432,1.508,1942.6,1942.2,0.4951785]
[1772982414453,0.49013352,1942.5,1942.1,0.1055354]
[1772982415017,0.49013352,1942.5,1942.0,0.00153886]
[1772982415220,1.77720106,1942.4,1942.0,0.00153886]
[1772982416968,0.49013352,1942.4,1942.0,0.00153886]
[1772982417462,0.49013352,1942.4,1942.0,1.2888715]
[1772982418156,1.77722313,1942.4,1942.0,0.00153886]
[1772982418659,0.49013352,1942.4,1942.0,0.49671736]
[1772982418865,1.77724296,1942.4,1942.0,0.49671736]
[1772982419088,0.49013352,1942.7,1942.0,0.49671736]
[1772982419366,1.77703403,1942.7,1942.2,1.7823504]
[1772982419862,1.77703403,1942.7,1942.3,0.4951785]
[1772982420165,0.49013352,1942.7,1942.3,0.4951785]
[1772982420370,0.49013352,1942.9,1942.2,1.2871719]
[1772982420666,0.49013352,1942.8,1942.1,1.78351415]
[1772982421865,0.49013352,1942.6,1942.1,1.78351415]
[1772982422048,1.28686879,1942.7,1942.2,0.4951785]
[1772982422250,1.77700231,1942.7,1942.2,0.4951785]
[1772982422666,0.47131304,1942.6,1942.1,1.28833565]
[1772982422868,0.47131304,1942.6,1942.1,1.76602584]
[1772982424669,0.46347896,1943.0,1942.2,0.46687058]
[1772982426072,0.46347896,1943.0,1942.1,1.28833565]
[1772982426262,0.46347896,1942.8,1942.2,0.46687058]
[1772982429372,1.75032773,1942.8,1942.4,0.46687058]
[1772982431581,0.001,1942.7,1942.4,0.46687058]
[1772982432875,0.46447896,1942.7,1942.3,0.46687058]
[1772982433679,0.001,1942.7,1942.3,0.46687058]
[1772982433879,0.001,1942.7,1942.4,0.46687058]
[1772982436972,0.46447896,1942.7,1942.4,0.46687058]
[1772982437356,0.46447896,1942.7,1942.4,1.75392732]
[1772982437550,0.001,1942.7,1942.5,0.46687058]
[1772982437777,1.508,1943.0,1942.5,0.46687058]
[1772982438455,1.28655118,1943.2,1942.7,0.46687058]
[1772982438651,1.508,1943.2,1942.7,0.46687058]
[1772982439380,1.74996361,1943.3,1942.7,0.46687058]
[1772982439981,1.28644637,1943.4,1942.7,0.46687058]
[1772982440780,1.74992533,1943.4,1942.9,0.46687058]
[1772982441713,0.46347896,1943.3,1942.9,0.46687058]
[1772982443386,1.74996907,1943.3,1942.9,0.46687058]
[1772982443686,0.001,1943.2,1942.9,0.46687058]
[1772982445483,0.001,1943.2,1942.9,1.75359694]
[1772982446581,0.001,1943.2,1942.9,0.46687058]
[1772982448492,0.46447896,1943.2,1942.9,0.46687058]
[1772982451398,0.46447896,1943.2,1942.9,1.75359498]
[1772982456296,0.001,1943.1,1942.9,1.75359498]
[1772982464788,0.001,1943.1,1943.0,0.47947849]
[1772982467414,0.45022046,1943.3,1943.0,1.76614858]
[1772982467588,1.516,1943.4,1943.1,0.47947849]
[1772982467984,0.45022046,1943.3,1942.8,0.0011]
[1772982468186,0.45022046,1943.2,1942.6,0.0011]
[1772982468411,0.45022046,1943.2,1942.2,0.0011]
[1772982468412,0.45022046,1943.0,1942.2,0.0011]
[1772982468611,0.45022046,1942.8,1942.2,0.0011]
[1772982468814,1.513,1942.7,1942.2,0.48057849]
[1772982469020,5.12641585,1943.4,1942.4,0.47947849]
[1772982469021,0.45022046,1942.9,1942.4,0.47947849]
[1772982469184,1.95822046,1942.8,1942.4,0.47947849]
[1772982469606,0.45022046,1942.7,1942.4,0.47947849]
[1772982470318,1.508,1942.9,1942.5,0.47947849]
[1772982470616,1.95822046,1942.9,1942.5,0.47947849]
[1772982472703,0.45022046,1942.8,1942.3,1.28818027]
[1772982473018,0.45022046,1942.8,1942.3,0.0011]
[1772982473221,0.45022046,1942.8,1942.3,1.28822177]
[1772982473396,0.45022046,1942.8,1942.3,1.76770026]
[1772982475194,0.45022046,1942.7,1942.3,1.76770026]